[Event "Kvibergspelen 2022"]
[Site "Kviberg Park Hotel & Conference, Krutvagen 2, Gothenburg, Sweden"]
[Date "2022.10.01"]
[Round "6.19"]
[White "Borvander, Tom"]
[Black "Frost, Niklas"]
[Result "1-0"]
[TimeControl "15 minutes + 5 seconds per move from move one (Round 1 - 4) / 90 minutes + 30 seconds per move from move one (Round 5 - 8)"]
[WhiteFideId "1707388"]
[BlackFideId "1717235"]
[WhiteElo "2098"]
[BlackElo "1843"]

1. d4 {[%clk 01:30:46]} {[%emt 00:00:14]} d6 {[%clk 01:30:45]} {[%emt
00:00:15]} 2. Nf3 {[%clk 01:31:06]} {[%emt 00:00:09]} Nf6 {[%emt 00:00:23]} 3.
c4 {[%emt 00:00:21]} g6 {[%clk 01:30:07]} {[%emt 00:00:25]} 4. g3 {[%clk
01:31:05]} {[%emt 00:00:31]} Bg7 {[%clk 01:29:54]} {[%emt 00:00:43]} 5. Bg2
{[%clk 01:31:25]} {[%emt 00:00:10]} O-O {[%clk 01:27:55]} {[%emt 00:02:29]} 6.
Nc3 {[%clk 01:31:24]} {[%emt 00:00:31]} Ng4 {[%clk 01:22:36]} {[%emt 00:05:49]}
7. h3 {[%clk 01:30:29]} {[%emt 00:01:25]} Nf6 {[%clk 01:21:47]} {[%emt
00:01:19]} 8. O-O {[%clk 01:30:42]} {[%emt 00:00:17]} c6 {[%clk 01:18:24]}
{[%emt 00:03:53]} 9. e4 {[%clk 01:29:32]} {[%emt 00:01:40]} Nfd7 {[%clk
01:11:45]} {[%emt 00:07:10]} 10. Re1 {[%clk 01:26:41]} {[%emt 00:03:21]} e5
{[%clk 01:00:53]} {[%emt 00:11:22]} 11. Be3 {[%clk 01:24:06]} f5 {[%clk
00:49:25]} {[%emt 00:15:03]} 12. Qd2 {[%clk 01:17:17]} Nb6 {[%clk 00:27:27]}
{[%emt 00:29:47]} 13. b3 {[%clk 01:08:24]} fxe4 {[%clk 00:24:17]} {[%emt
00:13:02]} 14. Nxe4 {[%clk 01:08:28]} d5 {[%clk 00:23:53]} {[%emt 00:01:21]} 15.
cxd5 {[%clk 01:08:33]} cxd5 {[%clk 00:23:39]} {[%emt 00:01:09]} 16. Nc5 {[%clk
01:08:38]} e4 {[%clk 00:21:12]} {[%emt 00:03:23]} 17. Ne5 {[%clk 01:06:30]} Qe7
{[%clk 00:18:24]} {[%emt 00:05:55]} 18. Bg5 {[%clk 01:05:54]} {[%emt 00:01:06]}
Bf6 {[%clk 00:18:16]} {[%emt 00:00:38]} 19. Bxf6 {[%clk 01:00:40]} {[%emt
00:05:44]} Qxf6 {[%clk 00:18:11]} {[%emt 00:00:35]} 20. Rac1 {[%clk 01:00:41]}
N8d7 {[%clk 00:17:58]} {[%emt 00:01:13]} 21. Ng4 {[%clk 01:00:25]} Qd6 {[%clk
00:15:20]} {[%emt 00:03:53]} 22. a4 {[%clk 00:58:56]} Nf6 {[%clk 00:14:56]}
{[%emt 00:02:53]} 23. Nxf6+ {[%clk 00:55:37]} Qxf6 {[%clk 00:14:07]} {[%emt
00:05:08]} 24. Rc3 {[%clk 00:54:19]} a5 {[%clk 00:13:05]} {[%emt 00:03:20]} 25.
f3 {[%clk 00:53:54]} exf3 {[%clk 00:10:11]} {[%emt 00:04:19]} 26. Rxf3 {[%clk
00:54:14]} Qd6 {[%clk 00:08:34]} {[%emt 00:02:17]} 27. Rxf8+ {[%clk 00:53:29]}
Qxf8 {[%clk 00:08:27]} {[%emt 00:01:52]} 28. Qg5 {[%clk 00:52:33]} Bf5 {[%clk
00:06:43]} {[%emt 00:03:40]} 29. g4 {[%clk 00:51:53]} h6 {[%clk 00:05:36]}
{[%emt 00:02:47]} 30. Qe3 {[%clk 00:50:15]} Bc2 {[%clk 00:04:29]} {[%emt
00:03:45]} 31. Qe6+ {[%clk 00:50:23]} 1-0

[Event "Kvibergspelen 2022"]
[Site "Kviberg Park Hotel & Conference, Krutvagen 2, Gothenburg, Sweden"]
[Date "2022.10.02"]
[Round "7.1"]
[White "Hillarp, Tiger"]
[Black "Agdestein, Simen"]
[Result "1/2-1/2"]
[TimeControl "15 minutes + 5 seconds per move from move one (Round 1 - 4) / 90 minutes + 30 seconds per move from move one (Round 5 - 8)"]
[WhiteTitle "GM"]
[BlackTitle "GM"]
[WhiteFideId "1700812"]
[BlackFideId "1500015"]
[WhiteElo "2511"]
[BlackElo "2576"]

1. d4 {[%clk 01:30:57]} {[%emt 00:00:02]} d5 {[%clk 01:29:56]} {[%emt
00:01:04]} 2. c4 {[%clk 01:31:05]} {[%emt 00:00:21]} e6 {[%clk 01:30:18]}
{[%emt 00:00:09]} 3. Nf3 {[%clk 01:29:18]} {[%emt 00:02:17]} c6 {[%clk
01:30:33]} {[%emt 00:00:15]} 4. Bg5 {[%clk 01:28:02]} {[%emt 00:01:46]} Be7
{[%clk 01:23:32]} {[%emt 00:07:31]} 5. Bxe7 {[%clk 01:28:23]} {[%emt 00:00:09]}
Qxe7 {[%clk 01:23:29]} {[%emt 00:00:33]} 6. Qc2 {[%clk 01:23:22]} {[%emt
00:05:30]} Nf6 {[%clk 01:22:24]} {[%emt 00:01:36]} 7. e3 {[%clk 01:20:51]}
{[%emt 00:03:01]} O-O {[%clk 01:22:10]} {[%emt 00:00:44]} 8. Nc3 {[%clk
01:21:00]} {[%emt 00:00:21]} Nbd7 {[%clk 01:18:39]} {[%emt 00:04:01]} 9. Rd1
{[%clk 01:10:04]} {[%emt 00:11:26]} Re8 {[%clk 01:04:53]} {[%emt 00:14:17]} 10.
Be2 {[%clk 00:56:46]} {[%emt 00:13:47]} dxc4 {[%clk 00:59:39]} {[%emt
00:05:44]} 11. Bxc4 {[%clk 00:55:45]} {[%emt 00:01:31]} b5 {[%clk 00:59:55]}
{[%emt 00:00:14]} 12. Be2 {[%clk 00:52:11]} {[%emt 00:04:04]} Bb7 {[%clk
00:57:41]} {[%emt 00:02:44]} 13. O-O {[%clk 00:51:51]} {[%emt 00:00:50]}
1/2-1/2

[Event "Kvibergspelen 2022"]
[Site "Kviberg Park Hotel & Conference, Krutvagen 2, Gothenburg, Sweden"]
[Date "2022.10.02"]
[Round "7.2"]
[White "Kucuksari, Kaan"]
[Black "Mitusov, Semen"]
[Result "1-0"]
[TimeControl "15 minutes + 5 seconds per move from move one (Round 1 - 4) / 90 minutes + 30 seconds per move from move one (Round 5 - 8)"]
[WhiteTitle "FM"]
[BlackTitle "FM"]
[WhiteFideId "6380166"]
[BlackFideId "14151049"]
[WhiteElo "2482"]
[BlackElo "2418"]

1. d4 {[%clk 01:30:57]} {[%emt 00:00:02]} d5 {[%clk 01:26:06]} {[%emt
00:04:55]} 2. Nf3 {[%clk 01:31:25]} {[%emt 00:00:01]} Nf6 {[%clk 01:25:58]}
{[%emt 00:00:39]} 3. e3 {[%clk 01:31:49]} {[%emt 00:00:07]} c5 {[%clk
01:23:03]} {[%emt 00:03:24]} 4. c3 {[%clk 01:32:12]} {[%emt 00:00:07]} Nc6
{[%clk 01:21:17]} {[%emt 00:02:16]} 5. dxc5 {[%clk 01:32:34]} {[%emt 00:00:08]}
e6 {[%clk 01:18:22]} {[%emt 00:03:25]} 6. b4 {[%clk 01:32:57]} {[%emt
00:00:07]} a5 {[%clk 01:18:47]} {[%emt 00:00:05]} 7. Bb5 {[%clk 01:31:37]}
{[%emt 00:01:50]} axb4 {[%clk 01:19:06]} {[%emt 00:00:12]} 8. cxb4 {[%clk
01:32:01]} {[%emt 00:00:06]} Bd7 {[%clk 01:19:24]} {[%emt 00:00:12]} 9. Qb3
{[%clk 01:20:47]} {[%emt 00:11:43]} Ne4 {[%clk 01:15:18]} {[%emt 00:04:36]} 10.
a4 {[%clk 01:07:04]} {[%emt 00:14:13]} b6 {[%clk 01:13:05]} {[%emt 00:02:43]}
11. Bxc6 {[%clk 01:06:24]} {[%emt 00:01:10]} Bxc6 {[%clk 01:13:26]} {[%emt
00:00:09]} 12. Nd4 {[%clk 01:05:36]} {[%emt 00:01:18]} Rc8 {[%clk 01:08:32]}
{[%emt 00:05:23]} 13. a5 {[%clk 00:46:56]} {[%emt 00:19:11]} bxc5 {[%clk
00:44:39]} {[%emt 00:24:23]} 14. Nxc6 {[%clk 00:46:27]} {[%emt 00:00:59]} Rxc6
{[%clk 00:44:50]} {[%emt 00:00:19]} 15. Qa4 {[%clk 00:38:21]} {[%emt 00:08:36]}
Qd7 {[%clk 00:31:47]} {[%emt 00:13:33]} 16. b5 {[%clk 00:37:49]} {[%emt
00:01:03]} Rc8 {[%clk 00:28:20]} {[%emt 00:03:56]} 17. a6 {[%clk 00:36:47]}
{[%emt 00:01:32]} Bd6 {[%clk 00:22:54]} {[%emt 00:05:56]} 18. b6 {[%clk
00:20:44]} {[%emt 00:16:32]} Qxa4 {[%clk 00:22:59]} {[%emt 00:00:25]} 19. Rxa4
{[%clk 00:21:13]} {[%emt 00:00:02]} Kd7 {[%clk 00:23:21]} {[%emt 00:00:08]} 20.
b7 {[%clk 00:20:30]} {[%emt 00:01:13]} Rc7 {[%clk 00:23:33]} {[%emt 00:00:18]}
21. Nd2 {[%clk 00:15:44]} {[%emt 00:05:16]} Kc6 {[%clk 00:20:32]} {[%emt
00:03:31]} 22. Nxe4 {[%clk 00:14:08]} {[%emt 00:02:06]} dxe4 {[%clk 00:20:58]}
{[%emt 00:00:04]} 23. Bd2 {[%clk 00:14:14]} {[%emt 00:00:24]} Rd7 {[%clk
00:19:29]} {[%emt 00:02:00]} 24. Ke2 {[%clk 00:13:38]} {[%emt 00:01:05]} Kb6
{[%clk 00:14:39]} {[%emt 00:05:21]} 25. a7 {[%clk 00:12:45]} {[%emt 00:01:22]}
1-0

[Event "Kvibergspelen 2022"]
[Site "Kviberg Park Hotel & Conference, Krutvagen 2, Gothenburg, Sweden"]
[Date "2022.10.02"]
[Round "7.3"]
[White "Stefansson, Vignir Vatnar"]
[Black "Olsson, William"]
[Result "1-0"]
[TimeControl "15 minutes + 5 seconds per move from move one (Round 1 - 4) / 90 minutes + 30 seconds per move from move one (Round 5 - 8)"]
[WhiteTitle "IM"]
[BlackTitle "FM"]
[WhiteFideId "2308649"]
[BlackFideId "1741721"]
[WhiteElo "2452"]
[BlackElo "2288"]

1. b3 {[%clk 01:30:35]} {[%emt 00:00:25]} d5 {[%clk 01:30:40]} {[%emt
00:00:21]} 2. Bb2 {[%clk 01:30:58]} {[%emt 00:00:07]} Nf6 {[%clk 01:31:02]}
{[%emt 00:00:07]} 3. Nf3 {[%clk 01:31:17]} {[%emt 00:00:10]} c5 {[%clk
01:31:27]} {[%emt 00:00:06]} 4. g3 {[%clk 01:30:07]} {[%emt 00:01:40]} Nc6
{[%clk 01:31:51]} {[%emt 00:00:07]} 5. Bg2 {[%clk 01:30:23]} {[%emt 00:00:13]}
e6 {[%clk 01:31:47]} {[%emt 00:00:34]} 6. O-O {[%clk 01:28:55]} {[%emt
00:01:58]} Bd6 {[%clk 01:31:39]} {[%emt 00:00:39]} 7. d4 {[%clk 01:28:33]}
{[%emt 00:00:52]} cxd4 {[%clk 01:28:56]} {[%emt 00:03:11]} 8. Nxd4 {[%clk
01:25:48]} {[%emt 00:03:17]} O-O {[%clk 01:25:16]} {[%emt 00:04:10]} 9. c4
{[%clk 01:17:59]} {[%emt 00:08:19]} Nxd4 {[%clk 01:19:05]} {[%emt 00:06:41]} 10.
Qxd4 {[%clk 01:18:18]} {[%emt 00:00:11]} e5 {[%clk 01:19:23]} {[%emt 00:00:12]}
11. Qd1 {[%clk 01:15:47]} {[%emt 00:03:00]} dxc4 {[%clk 01:17:19]} {[%emt
00:02:35]} 12. Nd2 {[%clk 01:15:43]} {[%emt 00:00:34]} Be6 {[%clk 01:12:46]}
{[%emt 00:05:02]} 13. Nxc4 {[%clk 01:14:48]} {[%emt 00:01:25]} Bxc4 {[%clk
01:12:51]} {[%emt 00:00:25]} 14. bxc4 {[%clk 01:15:14]} {[%emt 00:00:04]} Rc8
{[%clk 01:10:14]} {[%emt 00:03:08]} 15. Qa4 {[%clk 01:15:24]} {[%emt 00:00:20]}
Qc7 {[%clk 00:57:41]} {[%emt 00:13:03]} 16. Qxa7 {[%clk 01:13:50]} {[%emt
00:02:04]} Ra8 {[%clk 00:58:04]} {[%emt 00:00:07]} 17. Qe3 {[%clk 01:14:03]}
{[%emt 00:00:16]} Qxc4 {[%clk 00:58:27]} {[%emt 00:00:07]} 18. Qb3 {[%clk
01:09:31]} {[%emt 00:05:02]} Qxe2 {[%clk 00:52:22]} {[%emt 00:06:36]} 19. Bf3
{[%clk 01:09:06]} {[%emt 00:00:53]} Qd2 {[%clk 00:52:47]} {[%emt 00:00:06]} 20.
Rfd1 {[%clk 01:08:04]} {[%emt 00:01:31]} Qb4 {[%clk 00:52:58]} {[%emt
00:00:20]} 21. Qxb4 {[%clk 01:08:24]} {[%emt 00:00:10]} Bxb4 {[%clk 00:53:18]}
{[%emt 00:00:10]} 22. Bxe5 {[%clk 01:08:48]} {[%emt 00:00:05]} Ra5 {[%clk
00:51:08]} {[%emt 00:02:41]} 23. Bd4 {[%clk 01:04:16]} {[%emt 00:05:02]} b5
{[%clk 00:46:24]} {[%emt 00:05:14]} 24. Rab1 {[%clk 01:04:03]} {[%emt
00:00:43]} Be7 {[%clk 00:46:41]} {[%emt 00:00:13]} 25. Rb2 {[%clk 00:59:49]}
{[%emt 00:04:45]} Rc8 {[%clk 00:40:03]} {[%emt 00:07:08]} 26. Re1 {[%clk
00:53:20]} {[%emt 00:06:57]} Bd6 {[%clk 00:38:39]} {[%emt 00:01:56]} 27. Kg2
{[%clk 00:50:16]} {[%emt 00:03:33]} h6 {[%clk 00:36:39]} {[%emt 00:02:31]} 28.
Rd1 {[%clk 00:47:48]} {[%emt 00:02:57]} Bf8 {[%clk 00:36:31]} {[%emt 00:00:38]}
29. Bxf6 {[%clk 00:42:31]} {[%emt 00:05:47]} gxf6 {[%clk 00:36:52]} {[%emt
00:00:09]} 30. Rd7 {[%clk 00:42:58]} {[%emt 00:00:02]} Re8 {[%clk 00:37:10]}
{[%emt 00:00:13]} 31. Rc2 {[%clk 00:42:34]} {[%emt 00:00:54]} Be7 {[%clk
00:37:20]} {[%emt 00:00:21]} 32. Rcc7 {[%clk 00:41:00]} {[%emt 00:02:04]} Kf8
{[%clk 00:37:44]} {[%emt 00:00:06]} 33. Bd5 {[%clk 00:41:22]} {[%emt 00:00:07]}
b4 {[%clk 00:33:20]} {[%emt 00:04:54]} 34. Kf3 {[%clk 00:40:49]} {[%emt
00:01:03]} Rb5 {[%clk 00:32:09]} {[%emt 00:01:41]} 35. Kg4 {[%clk 00:37:07]}
{[%emt 00:04:12]} Rbb8 {[%clk 00:31:22]} {[%emt 00:01:17]} 36. Kh5 {[%clk
00:34:31]} {[%emt 00:03:06]} Rbd8 {[%clk 00:31:44]} {[%emt 00:00:09]} 37. Rxd8
{[%clk 00:33:57]} {[%emt 00:01:03]} Rxd8 {[%clk 00:32:09]} {[%emt 00:00:06]} 38.
Bb3 {[%emt 00:00:32]} Rd2 {[%clk 00:32:12]} 39. Kxh6 {[%clk 00:34:43]} {[%emt
00:00:08]} Rxf2 {[%clk 00:32:08]} {[%emt 00:00:34]} 40. Rc8+ {[%clk 00:34:58]}
{[%emt 00:00:15]} Bd8 {[%clk 00:32:35]} {[%emt 00:00:04]} 41. Rxd8+ {[%clk
00:34:58]} {[%emt 00:00:29]} Ke7 {[%clk 00:33:00]} {[%emt 00:00:05]} 42. Rd3
{[%clk 00:34:08]} {[%emt 00:01:20]} 1-0

[Event "Kvibergspelen 2022"]
[Site "Kviberg Park Hotel & Conference, Krutvagen 2, Gothenburg, Sweden"]
[Date "2022.10.02"]
[Round "7.4"]
[White "Mohammadi, Amir"]
[Black "Hector, Jonny"]
[Result "0-1"]
[TimeControl "15 minutes + 5 seconds per move from move one (Round 1 - 4) / 90 minutes + 30 seconds per move from move one (Round 5 - 8)"]
[BlackTitle "GM"]
[WhiteFideId "1705890"]
[BlackFideId "1700090"]
[WhiteElo "2294"]
[BlackElo "2454"]

1. g3 {[%clk 01:30:51]} {[%emt 00:00:09]} e5 {[%clk 01:29:53]} {[%emt
00:01:07]} 2. Bg2 {[%clk 01:31:02]} {[%emt 00:00:20]} d5 {[%clk 01:29:46]}
{[%emt 00:00:35]} 3. d3 {[%clk 01:31:04]} {[%emt 00:00:29]} Nc6 {[%clk
01:28:06]} {[%emt 00:02:10]} 4. Nf3 {[%clk 01:29:21]} {[%emt 00:02:13]} f5
{[%clk 01:28:03]} {[%emt 00:00:32]} 5. O-O {[%clk 01:28:41]} {[%emt 00:01:11]}
Nf6 {[%clk 01:27:43]} {[%emt 00:00:50]} 6. Bg5 {[%clk 01:27:15]} {[%emt
00:01:57]} h6 {[%clk 01:22:14]} {[%emt 00:05:58]} 7. Bxf6 {[%clk 01:26:37]}
{[%emt 00:01:09]} Qxf6 {[%clk 01:22:35]} {[%emt 00:00:08]} 8. Nc3 {[%clk
01:13:12]} {[%emt 00:13:55]} d4 {[%clk 01:18:18]} {[%emt 00:04:47]} 9. Nd5
{[%clk 01:11:46]} {[%emt 00:01:57]} Qf7 {[%clk 01:17:55]} {[%emt 00:00:52]} 10.
e4 {[%clk 01:07:49]} {[%emt 00:04:28]} dxe3 {[%clk 01:14:45]} {[%emt 00:03:40]}
11. Nxe3 {[%clk 01:06:19]} {[%emt 00:02:00]} Be6 {[%clk 01:12:17]} {[%emt
00:02:57]} 12. Nc4 {[%clk 00:57:07]} {[%emt 00:09:43]} Bxc4 {[%clk 01:10:04]}
{[%emt 00:02:42]} 13. dxc4 {[%clk 00:57:34]} {[%emt 00:00:03]} e4 {[%clk
01:09:06]} {[%emt 00:01:28]} 14. Nh4 {[%clk 00:49:58]} {[%emt 00:08:06]} Rd8
{[%clk 01:01:06]} {[%emt 00:08:30]} 15. Qe1 {[%clk 00:46:35]} {[%emt 00:03:53]}
Be7 {[%clk 01:00:57]} {[%emt 00:00:39]} 16. f3 {[%clk 00:39:20]} {[%emt
00:07:46]} g5 {[%clk 00:55:58]} {[%emt 00:05:28]} 17. fxe4 {[%clk 00:28:58]}
{[%emt 00:10:53]} gxh4 {[%clk 00:55:58]} {[%emt 00:00:29]} 18. Rxf5 {[%clk
00:27:43]} {[%emt 00:01:46]} Qxc4 {[%clk 00:52:01]} {[%emt 00:04:25]} 19. Bf3
{[%clk 00:28:05]} {[%emt 00:00:09]} Rd7 {[%clk 00:49:31]} {[%emt 00:03:00]} 20.
c3 {[%clk 00:26:02]} {[%emt 00:02:33]} hxg3 {[%clk 00:48:18]} {[%emt 00:01:43]}
21. hxg3 {[%clk 00:26:15]} {[%emt 00:00:18]} Rf8 {[%clk 00:44:23]} {[%emt
00:04:25]} 22. Bh5+ {[%clk 00:12:57]} {[%emt 00:13:47]} Kd8 {[%clk 00:44:33]}
{[%emt 00:00:19]} 23. b3 {[%clk 00:08:58]} {[%emt 00:04:30]} Qg8 {[%clk
00:43:40]} {[%emt 00:01:22]} 24. Rd1 {[%clk 00:05:08]} {[%emt 00:04:21]} Rxd1
{[%clk 00:42:25]} {[%emt 00:01:45]} 25. Qxd1+ {[%clk 00:05:31]} {[%emt
00:00:07]} Bd6 {[%clk 00:41:53]} {[%emt 00:01:02]} 26. g4 {[%clk 00:04:26]}
{[%emt 00:01:36]} Kc8 {[%clk 00:36:52]} {[%emt 00:05:31]} 27. c4 {[%clk
00:03:31]} {[%emt 00:01:25]} Qg7 {[%clk 00:33:56]} {[%emt 00:03:24]} 28. Qf1
{[%clk 00:03:11]} {[%emt 00:00:51]} Qd4+ {[%clk 00:32:33]} {[%emt 00:01:53]}
0-1

[Event "Kvibergspelen 2022"]
[Site "Kviberg Park Hotel & Conference, Krutvagen 2, Gothenburg, Sweden"]
[Date "2022.10.02"]
[Round "7.5"]
[White "Golubka, Petro"]
[Black "Hamark, Jesper"]
[Result "1-0"]
[TimeControl "15 minutes + 5 seconds per move from move one (Round 1 - 4) / 90 minutes + 30 seconds per move from move one (Round 5 - 8)"]
[WhiteTitle "GM"]
[WhiteFideId "14114224"]
[BlackFideId "1704338"]
[WhiteElo "2360"]
[BlackElo "2348"]

1. d4 {[%clk 01:18:24]} {[%emt 00:12:35]} d6 {[%clk 01:30:29]} {[%emt
00:00:32]} 2. Bf4 {[%clk 01:18:21]} {[%emt 00:00:32]} g6 {[%clk 01:30:19]}
{[%emt 00:00:41]} 3. e4 {[%clk 01:17:43]} {[%emt 00:01:08]} Bg7 {[%clk
01:30:26]} {[%emt 00:00:24]} 4. c3 {[%clk 01:17:48]} {[%emt 00:00:22]} Nd7
{[%clk 01:29:32]} {[%emt 00:01:26]} 5. Bc4 {[%clk 01:17:39]} {[%emt 00:00:36]}
e5 {[%clk 01:26:21]} {[%emt 00:03:45]} 6. dxe5 {[%clk 01:13:16]} {[%emt
00:04:52]} Nxe5 {[%clk 01:26:17]} {[%emt 00:00:34]} 7. Bb3 {[%clk 01:12:07]}
{[%emt 00:01:38]} Qe7 {[%clk 01:23:04]} {[%emt 00:03:44]} 8. Qe2 {[%clk
01:09:25]} {[%emt 00:03:11]} f5 {[%clk 01:13:11]} {[%emt 00:10:24]} 9. Nd2
{[%clk 01:05:58]} {[%emt 00:03:57]} Nf6 {[%clk 01:10:15]} {[%emt 00:03:25]} 10.
Bg5 {[%clk 00:56:20]} {[%emt 00:10:09]} Bd7 {[%clk 00:56:22]} {[%emt 00:14:23]}
11. O-O-O {[%clk 00:51:56]} {[%emt 00:04:53]} O-O-O {[%clk 00:51:27]} {[%emt
00:05:25]} 12. f4 {[%clk 00:48:53]} {[%emt 00:03:30]} Nc6 {[%clk 00:37:54]}
{[%emt 00:14:07]} 13. exf5 {[%clk 00:48:23]} {[%emt 00:00:56]} Qxe2 {[%clk
00:28:57]} {[%emt 00:09:31]} 14. Nxe2 {[%clk 00:43:24]} {[%emt 00:05:29]} Bxf5
{[%clk 00:29:25]} {[%emt 00:00:03]} 15. Rhe1 {[%clk 00:38:55]} {[%emt
00:04:58]} Rde8 {[%clk 00:29:20]} {[%emt 00:00:35]} 16. h3 {[%clk 00:32:24]}
{[%emt 00:07:00]} Ne4 {[%clk 00:25:41]} {[%emt 00:04:10]} 17. Nxe4 {[%clk
00:30:24]} {[%emt 00:02:29]} Bxe4 {[%clk 00:25:58]} {[%emt 00:00:14]} 18. Bf7
{[%clk 00:30:07]} {[%emt 00:00:43]} Ref8 {[%clk 00:17:08]} {[%emt 00:09:24]} 19.
Be6+ {[%clk 00:27:10]} {[%emt 00:03:26]} Kb8 {[%clk 00:17:37]} 20. Ng1 {[%clk
00:22:37]} {[%emt 00:05:05]} Bf5 {[%clk 00:17:04]} {[%emt 00:01:04]} 21. Bd5
{[%clk 00:22:14]} {[%emt 00:00:53]} Bd7 {[%clk 00:15:20]} {[%emt 00:02:14]} 22.
Ne2 {[%clk 00:22:22]} {[%emt 00:00:21]} a5 {[%clk 00:13:52]} {[%emt 00:01:59]}
23. Kd2 {[%clk 00:21:54]} {[%emt 00:00:58]} b5 {[%clk 00:13:13]} {[%emt
00:01:09]} 24. Rf1 {[%clk 00:20:12]} {[%emt 00:02:12]} b4 {[%clk 00:13:01]}
{[%emt 00:00:42]} 25. Bh4 {[%clk 00:20:08]} {[%emt 00:00:33]} Rf5 {[%clk
00:09:43]} {[%emt 00:03:48]} 26. Be4 {[%clk 00:20:06]} {[%emt 00:00:32]} Rf7
{[%clk 00:09:28]} {[%emt 00:00:46]} 27. Bd5 {[%clk 00:19:47]} {[%emt 00:00:48]}
Rf5 {[%clk 00:09:57]} {[%emt 00:00:02]} 28. Be4 {[%clk 00:19:33]} {[%emt
00:00:43]} Rf7 {[%clk 00:10:26]} {[%emt 00:00:02]} 29. a3 {[%clk 00:17:53]}
{[%emt 00:02:10]} Re8 {[%clk 00:09:57]} {[%emt 00:00:58]} 30. Bf3 {[%clk
00:16:57]} {[%emt 00:01:26]} Kc8 {[%clk 00:07:12]} {[%emt 00:03:16]} 31. axb4
{[%clk 00:17:07]} {[%emt 00:00:18]} axb4 {[%clk 00:07:30]} {[%emt 00:00:13]} 32.
Ra1 {[%clk 00:17:17]} {[%emt 00:00:20]} Rf5 {[%clk 00:05:10]} {[%emt 00:02:50]}
33. Bf2 {[%clk 00:16:08]} {[%emt 00:01:37]} Rb5 {[%clk 00:05:13]} {[%emt
00:00:29]} 34. Ra8+ {[%clk 00:15:33]} {[%emt 00:01:05]} Rb8 {[%clk 00:03:04]}
{[%emt 00:02:39]} 35. Rfa1 {[%clk 00:15:19]} {[%emt 00:00:44]} Rxa8 {[%clk
00:03:25]} {[%emt 00:00:10]} 36. Rxa8+ {[%clk 00:15:23]} {[%emt 00:00:26]} Kb7
{[%clk 00:03:54]} 37. Ra7+ {[%clk 00:13:29]} {[%emt 00:02:22]} Kb8 {[%clk
00:04:14]} {[%emt 00:00:11]} 38. Ra4 {[%clk 00:13:02]} {[%emt 00:00:56]} bxc3+
{[%clk 00:03:53]} {[%emt 00:00:53]} 39. Nxc3 {[%clk 00:12:56]} {[%emt
00:00:35]} Rf8 {[%clk 00:03:10]} {[%emt 00:01:14]} 40. Nd5 {[%clk 00:10:23]}
{[%emt 00:03:03]} Nd8 {[%clk 00:00:32]} {[%emt 00:03:07]} 41. Rb4+ {[%clk
00:09:22]} 1-0